bitfinex-derivatives/quotes_ETHF0:USTF0_20260306
["timestamp","ask_amount","ask_price","bid_price","bid_amount"]
[1772755949855,0.57166895,2079.2,2078.5,1.45289151]
[1772755950760,0.56961154,2079.3,2078.5,1.45289151]
[1772755952860,0.24044,2079.4,2078.5,1.45289151]
[1772755953060,5.67905351,2079.3,2078.5,1.45289151]
[1772755953260,0.81047077,2079.4,2078.5,1.45289151]
[1772755953460,5.67943516,2079.3,2078.5,1.45289151]
[1772755953761,0.81047077,2079.4,2078.5,1.45289151]
[1772755954060,6.24969096,2079.3,2078.5,1.45289151]
[1772755954363,0.57024936,2079.3,2078.5,1.45289151]
[1772755955565,0.56305244,2079.1,2078.5,1.45289151]
[1772755955960,12.54509292,2079.5,2078.1,1.45289151]
[1772755955961,0.56325669,2078.9,2078.1,1.45289151]
[1772755958064,0.5867332,2079.1,2078.3,1.45289151]
[1772755959064,0.59847509,2078.9,2078.3,1.45289151]
[1772755963765,2.03702653,2079.0,2078.3,1.45289151]
[1772755963966,0.84004935,2079.1,2078.3,1.45289151]
[1772755965461,0.24048,2079.1,2078.3,1.45289151]
[1772755965967,6.52,2079.3,2078.5,1.45289151]
[1772755966266,5.67587221,2079.2,2078.5,1.45289151]
[1772755966467,5.67587221,2079.1,2078.5,1.45289151]
[1772755966669,0.6153448,2079.2,2078.5,1.45289151]
[1772755966966,5.67578911,2079.1,2078.5,1.45289151]
[1772755967166,0.6153448,2079.2,2078.5,1.45289151]
[1772755967469,5.67569226,2079.1,2078.5,1.45289151]
[1772755967670,0.6153448,2079.2,2078.5,1.45289151]
[1772755967865,5.67568002,2079.1,2078.5,1.45289151]
[1772755968065,0.6153448,2079.2,2078.5,1.45289151]
[1772755968368,5.67561356,2079.1,2078.5,1.45289151]
[1772755968568,0.6153448,2079.2,2078.5,1.45289151]
[1772755968766,5.67549531,2079.1,2078.5,1.45289151]
[1772755969069,0.6153448,2079.2,2078.5,1.45289151]
[1772755969368,5.67549572,2079.1,2078.5,1.45289151]
[1772755969564,0.61248764,2079.3,2078.7,1.45289151]
[1772755969761,6.28822686,2079.2,2078.7,1.45289151]
[1772755969967,0.6126618,2079.0,2078.7,1.45289151]
[1772755970271,0.6126618,2079.1,2078.7,1.45289151]
[1772755971067,0.61284606,2079.3,2078.7,1.45289151]
[1772755971273,6.28885854,2079.2,2078.7,1.45289151]
[1772755971573,6.28885561,2079.1,2078.7,1.45289151]
[1772755971768,0.61284313,2079.1,2078.7,1.45289151]
[1772755975072,0.61284313,2079.1,2078.6,1.45289151]
[1772755976272,10.51289724,2079.4,2078.6,1.45289151]
[1772755976472,5.68111652,2079.3,2078.6,1.45289151]
[1772755976672,5.68111652,2079.2,2078.6,1.45289151]
[1772755977073,5.04609695,2079.2,2078.6,1.45289151]
[1772755977274,6.521,2079.4,2078.6,1.45289151]
[1772755979874,1.26814983,2079.3,2078.6,1.45289151]
[1772755981576,7.77667934,2079.4,2078.6,1.45289151]
[1772755981877,6.521,2079.4,2078.6,1.45289151]
[1772755982478,7.80251336,2079.4,2078.6,1.45289151]
[1772755983172,6.521,2079.4,2078.6,1.45289151]
[1772755983372,1.28751292,2079.5,2078.6,1.45289151]
[1772755984679,0.00616915,2079.5,2078.6,1.45289151]
[1772755986081,1.30693321,2079.5,2078.6,1.45289151]
[1772755987982,1.31319041,2079.3,2078.6,1.45289151]
[1772755993079,1.31319041,2079.3,2078.0,1.47938938]
[1772756001488,1.31319041,2079.3,2078.2,1.47938938]
[1772756001786,3.35002778,2079.5,2078.2,1.71995938]
[1772756001991,6.97297652,2079.4,2078.5,1.47938938]
[1772756002192,1.30750437,2079.4,2078.5,1.47938938]
[1772756003285,0.00616915,2079.5,2078.5,1.47938938]
[1772756003494,1.31121926,2079.5,2078.8,1.47938938]
[1772756005794,0.00616915,2079.5,2078.8,1.47938938]
[1772756008899,0.00524176,2079.5,2078.8,1.47938938]
[1772756012994,1.34152554,2079.9,2079.1,1.55656396]
[1772756014097,1.34524463,2079.9,2079.1,1.55656396]
[1772756014301,1.34524463,2079.9,2079.2,1.55656396]
[1772756017297,0.00371909,2079.9,2079.2,1.55656396]
[1772756018207,13.49915019,2080.5,2079.6,2.03635426]
[1772756018208,0.89911911,2080.5,2079.6,2.03635426]
[1772756018410,0.89911911,2080.5,2079.7,1.55656396]
[1772756019200,2.18313333,2080.5,2079.7,1.5622853]
[1772756019400,1.27789044,2080.4,2079.7,1.5622853]
[1772756020709,2.18214744,2080.5,2079.7,1.5622853]
[1772756022210,0.90524289,2080.5,2079.7,1.5622853]
[1772756023008,2.16124513,2080.5,2079.7,1.5622853]
[1772756023709,1.25590696,2080.4,2079.7,1.5622853]
[1772756024706,1.25590696,2080.4,2079.3,0.24045]
[1772756024707,1.25590696,2080.4,2079.3,1.55656396]
[1772756025714,1.25590696,2080.4,2079.3,1.56274416]
[1772756026109,0.24033,2080.3,2079.3,1.56274416]
[1772756026317,0.90524289,2080.5,2079.7,1.55656396]
[1772756026507,2.16191562,2080.5,2079.7,1.55656396]
[1772756027110,1.25655034,2080.4,2079.7,1.55656396]
[1772756034518,1.25655034,2080.4,2079.8,3.59029589]
[1772756036218,1.25655034,2080.4,2079.9,1.55656396]
[1772756042720,1.25655034,2080.4,2080.0,3.59297538]
[1772756042918,2.10915976,2080.5,2080.1,1.55924345]
[1772756043414,1.3718028,2080.9,2080.4,2.03373193]
[1772756043622,4.25790682,2081.2,2079.9,1.55924345]
[1772756043623,1.45364393,2080.7,2079.9,1.55924345]
[1772756044524,1.45364393,2080.7,2080.0,3.59297538]
[1772756044724,1.45727369,2080.7,2080.0,3.59297538]
[1772756045025,1.45727369,2080.7,2080.1,1.55924345]
[1772756047417,0.00362976,2080.7,2080.3,1.55924345]
[1772756047621,1.45727369,2080.7,2080.3,1.55924345]
[1772756048127,1.45727369,2080.7,2080.2,1.55924345]
[1772756050426,1.45727369,2080.7,2080.3,1.55924345]
[1772756051929,1.45727369,2080.7,2080.0,1.55924345]
[1772756052128,1.45727369,2080.7,2080.0,3.59297538]
[1772756052725,1.45727369,2080.7,2080.1,1.55924345]
[1772756054124,1.45727369,2080.7,2080.0,1.55924345]
[1772756058733,1.45727369,2080.7,2080.1,2.03373193]
[1772756059031,1.45727369,2080.7,2080.2,1.55924345]
[1772756061033,0.00362976,2080.7,2080.2,1.55924345]
[1772756061235,0.00362976,2080.7,2080.4,1.55924345]
[1772756062234,1.45364393,2080.9,2080.6,1.55924345]
[1772756063234,1.45753263,2080.9,2080.6,1.55924345]
[1772756064534,1.45753263,2080.9,2080.4,1.55924345]
[1772756067736,1.45753263,2080.9,2080.3,1.55924345]
[1772756071935,5.67055246,2080.8,2080.2,1.54730891]
[1772756072145,1.5643706,2080.7,2080.2,1.54730891]
[1772756080343,6.5348887,2080.9,2080.2,1.54730891]
[1772756080545,7.23664815,2080.8,2080.3,1.54730891]
[1772756080745,1.5643706,2080.8,2080.3,1.54730891]
[1772756082151,1.5682593,2080.9,2080.3,1.54730891]
[1772756082352,8.1202593,2080.9,2080.5,1.54730891]
[1772756082553,0.0038887,2080.9,2080.5,1.54730891]
[1772756084058,1.5682593,2080.9,2080.5,1.54730891]
[1772756088560,1.5682593,2080.9,2080.3,1.54730891]
[1772756094867,0.0038887,2080.9,2080.3,1.54730891]
[1772756096769,1.5682593,2080.9,2080.3,1.54730891]
[1772756102868,1.5682593,2080.9,2079.8,1.55364731]
[1772756103166,5.67743805,2080.8,2080.0,1.55364731]
[1772756103372,0.0038887,2080.9,2080.0,1.55364731]
[1772756104172,1.59717495,2080.9,2080.0,1.55364731]
[1772756104674,1.59328625,2080.7,2080.0,1.55364731]
[1772756106069,1.59328625,2080.5,2080.0,1.55364731]
[1772756108178,1.59328625,2080.5,2079.7,1.55364731]
[1772756111669,1.59328625,2080.4,2079.7,1.55364731]
[1772756115677,1.59328625,2080.4,2079.4,1.55364731]
[1772756115678,1.59328625,2080.3,2079.4,1.55364731]
[1772756115877,1.59328625,2080.1,2079.4,1.55364731]
[1772756116285,6.64,2080.3,2079.4,1.55364731]
[1772756116482,1.59328625,2080.4,2079.4,1.55364731]
[1772756130591,1.43886025,2080.2,2079.4,1.55364731]
[1772756130793,1.43886025,2080.0,2079.4,1.55364731]
[1772756131595,1.43886025,2080.0,2078.8,1.51613932]
[1772756131998,1.43886025,2080.0,2079.0,1.51613932]
[1772756132688,1.43886025,2080.0,2079.0,1.51982776]
[1772756134295,1.43886025,2079.8,2079.0,1.51982776]
[1772756135699,1.43886025,2080.0,2079.0,1.51982776]
[1772756135999,4.01338137,2080.3,2079.6,1.51613932]
[1772756136000,1.43886025,2080.3,2079.6,1.51613932]
[1772756145402,1.43886025,2080.3,2079.3,1.51613932]
[1772756145601,1.43886025,2080.1,2079.3,1.51613932]
[1772756148305,5.69004378,2080.0,2079.3,1.51613932]
[1772756148610,5.69004378,2080.0,2079.0,0.00368844]
[1772756148611,1.43886025,2079.8,2079.1,1.51613932]
[1772756150616,1.43886025,2079.6,2079.0,1.51982776]
[1772756150815,1.43886025,2079.6,2079.0,0.00368844]
[1772756151016,1.43886025,2079.6,2078.9,1.51613932]
[1772756151512,1.43886025,2079.6,2078.4,2.03293732]
[1772756151513,1.43886025,2079.6,2078.5,1.51613932]
[1772756152109,1.43886025,2079.6,2078.5,1.51969563]
[1772756152719,1.43886025,2079.4,2078.5,1.51969563]
[1772756152917,1.44262206,2079.4,2078.5,1.51969563]
[1772756154618,1.44262206,2079.4,2078.6,1.51613932]
[1772756155619,1.43886025,2079.2,2078.6,1.51613932]
[1772756155817,1.43886025,2079.0,2078.5,1.51969563]
[1772756156218,1.43886025,2079.0,2078.4,1.35007582]
[1772756156810,1.43886025,2079.0,2078.2,1.51613932]
[1772756157220,1.43886025,2079.0,2078.2,1.52001575]
[1772756157921,1.43886025,2079.0,2078.4,1.51613932]
[1772756164225,1.43886025,2079.0,2078.2,1.55028176]
[1772756164426,1.59998061,2078.8,2078.2,1.55028176]
[1772756165827,1.59998061,2078.6,2078.2,1.55028176]
[1772756166028,1.59998061,2078.6,2078.0,1.54640533]
[1772756166627,1.59998061,2078.5,2077.9,1.54640533]
[1772756166928,1.59998061,2078.5,2077.9,1.55005763]
[1772756167532,1.59998061,2078.8,2078.0,1.54640533]
[1772756167730,8.26498061,2078.7,2078.0,1.54640533]
[1772756167929,1.59998061,2078.6,2078.0,1.54640533]
[1772756171532,1.59998061,2078.8,2078.4,1.54640533]
[1772756174032,1.59998061,2078.6,2077.9,1.55005763]
[1772756181240,1.59998061,2078.6,2077.9,0.0036523]
[1772756182740,1.59998061,2078.4,2077.5,3.58268688]
[1772756182941,1.59998061,2078.3,2077.6,1.54640533]
[1772756183735,1.59998061,2078.3,2077.6,1.55249194]
[1772756184637,1.59998061,2078.3,2077.7,3.58268688]
[1772756185041,1.59998061,2078.3,2077.7,1.54640533]
[1772756185939,3.99774163,2078.6,2077.7,1.54640533]
[1772756186139,7.50425019,2078.9,2078.4,3.36243019]
[1772756186140,1.59998061,2078.9,2078.4,3.36243019]
[1772756186346,1.59998061,2078.9,2078.4,1.32614864]
[1772756186540,1.59998061,2078.9,2078.1,1.33074255]
[1772756188039,1.59998061,2078.9,2078.3,1.33299103]
[1772756188242,1.59998061,2078.9,2078.5,1.33299103]
[1772756190947,6.686,2079.0,2078.7,1.29361146]
[1772756191349,1.60722002,2079.1,2078.7,1.29361146]
[1772756193546,1.60722002,2079.1,2078.4,2.03628155]
[1772756193755,1.60722002,2078.7,2078.1,1.29929915]
[1772756193958,1.60722002,2078.5,2078.0,1.29929915]
[1772756194157,1.60722002,2078.5,2077.7,1.29929915]
[1772756194856,1.60722002,2078.5,2077.8,3.32998258]
[1772756195056,1.60722002,2078.5,2077.8,1.29370103]
[1772756195359,1.60722002,2078.1,2077.6,0.00608661]
[1772756196459,1.60722002,2078.1,2077.3,3.32403809]
[1772756196656,1.60722002,2077.9,2077.2,1.28875902]
[1772756197361,1.60722002,2077.9,2077.2,1.29454943]
[1772756197362,1.61161946,2077.9,2077.2,1.29454943]
[1772756197562,1.61161946,2077.9,2077.2,0.00579041]
[1772756197855,1.60722002,2077.7,2077.2,0.00579041]
[1772756198060,1.60722002,2077.6,2076.8,1.28972901]
[1772756198960,1.60722002,2077.6,2076.8,1.29500775]
[1772756204862,1.60722002,2077.6,2076.8,0.00527874]
[1772756205061,1.60722002,2077.6,2076.8,1.31662053]
[1772756206164,1.60722002,2077.6,2076.8,0.00527874]
[1772756206862,1.84787002,2077.6,2076.3,1.30168058]
[1772756208159,1.60722002,2077.6,2076.5,1.30781662]
[1772756208467,1.60722002,2077.5,2076.7,1.30781662]
[1772756209072,8.32522002,2077.6,2076.7,1.54855662]
[1772756209363,0.00439944,2077.9,2076.7,1.54855662]
[1772756209567,1.60722002,2077.8,2076.7,1.54855662]
[1772756213067,1.61161946,2077.9,2077.0,0.24071]
[1772756213270,1.61161946,2077.9,2077.1,1.28421413]
[1772756213768,0.00439944,2077.9,2077.3,1.28501808]
[1772756214473,1.60722002,2078.4,2077.5,1.28501808]
[1772756214674,1.60722002,2078.4,2077.7,1.28841921]
[1772756215574,1.60722002,2078.4,2077.9,1.28837589]
[1772756215769,1.61192095,2078.4,2077.9,1.29301739]
[1772756217870,1.60722002,2078.5,2077.9,1.29301739]
[1772756218874,1.61120877,2078.5,2077.9,1.29301739]
[1772756220375,0.00398875,2078.5,2077.9,1.29301739]
[1772756220677,1.56759941,2078.7,2078.1,1.2948213]
[1772756221472,1.57307147,2078.7,2078.1,1.2948213]
[1772756227280,1.57307147,2078.7,2077.9,1.30041117]
[1772756231580,1.57307147,2078.7,2078.1,1.28737863]
[1772756231780,1.56759941,2078.9,2078.3,1.5171043]
[1772756232683,1.57269126,2078.9,2078.0,1.5171043]
[1772756233182,1.57269126,2078.9,2077.9,0.0046415]
[1772756233183,1.57269126,2078.9,2078.4,1.5171043]
[1772756233783,0.00509185,2078.9,2078.4,1.5171043]
[1772756234087,1.57269126,2078.9,2078.4,1.5171043]
[1772756242193,1.57269126,2078.9,2078.2,1.5171043]
[1772756244088,1.57269126,2078.9,2078.2,1.7576743]
[1772756245694,1.57269126,2078.9,2078.2,1.5171043]
[1772756251199,4.02349576,2079.3,2078.2,1.5171043]
[1772756251400,1.55431557,2079.7,2078.7,0.24052]
[1772756251600,1.55431557,2079.7,2078.8,1.59013576]
[1772756252406,1.55930933,2079.7,2078.8,1.59013576]
[1772756252602,0.00499376,2079.7,2079.0,1.59013576]
[1772756252802,1.55930933,2079.7,2079.0,1.59013576]
[1772756254105,0.00499376,2079.7,2079.0,1.59013576]
[1772756259612,1.55431557,2080.0,2079.2,1.59013576]
[1772756260610,1.56026109,2080.0,2079.2,1.59013576]
[1772756261114,1.56026109,2080.0,2078.7,46.71676]
[1772756261115,1.56026109,2080.0,2078.9,1.59013576]
[1772756261310,0.24038,2079.9,2078.8,1.59013576]
[1772756261515,1.55431557,2079.7,2078.7,1.59013576]
[1772756261714,1.55431557,2079.7,2078.4,1.59013576]
[1772756261715,1.55431557,2079.5,2078.4,1.59013576]
[1772756261916,1.55431557,2079.3,2078.4,1.59013576]
[1772756262317,1.55431557,2079.3,2078.2,1.59013576]
[1772756262616,1.55431557,2079.1,2077.9,0.0046415]
[1772756262812,1.55431557,2078.9,2077.9,0.0046415]
[1772756263012,5.60708515,2078.8,2077.9,0.0046415]
[1772756263319,1.55431557,2078.7,2077.9,0.0046415]
[1772756266814,1.55431557,2078.7,2077.6,40.8]
[1772756266815,1.55431557,2078.7,2077.6,1.59013576]
[1772756267016,1.55431557,2078.7,2077.2,1.59013576]
[1772756267219,1.55431557,2078.5,2077.4,1.59013576]
[1772756267924,1.55803984,2078.5,2077.4,1.5950298]
[1772756277022,1.55431557,2078.3,2077.4,0.00489404]
[1772756277725,1.55431557,2078.3,2077.4,1.5950298]
[1772756282427,1.57476274,2078.1,2077.4,0.00489404]
[1772756283020,1.57476274,2078.1,2077.4,1.52872558]
[1772756285629,1.57476274,2078.1,2077.4,0.00489404]
[1772756286928,1.57476274,2078.1,2077.1,1.52383154]
[1772756288023,1.57476274,2078.1,2077.1,1.52970302]
[1772756288731,1.57476274,2077.9,2077.1,0.00587148]
[1772756289534,1.57476274,2077.7,2077.1,0.00587148]
[1772756289728,1.57476274,2077.7,2076.5,0.24077]
[1772756289729,1.57476274,2077.5,2076.2,7.55533512]
[1772756289929,1.57476274,2077.3,2076.2,1.52383154]
[1772756290337,1.57476274,2077.3,2076.4,1.52383154]
[1772756290932,1.57476274,2077.3,2076.4,1.52767446]
[1772756296234,1.57476274,2077.3,2076.4,0.00384292]
[1772756296435,1.57476274,2077.1,2075.7,1.52383154]
[1772756296739,1.57476274,2076.9,2075.7,1.52383154]
[1772756297330,1.57476274,2076.7,2075.7,1.52383154]
[1772756297541,1.57476274,2076.7,2075.7,1.52917638]
[1772756301842,1.57823917,2076.9,2076.0,1.52383154]
[1772756302635,1.57476274,2076.5,2075.7,0.00534484]
[1772756302842,1.57476274,2076.3,2074.9,1.52383154]
[1772756303242,1.57476274,2076.3,2075.1,1.52383154]
[1772756303937,1.57476274,2076.3,2075.1,1.52811296]
[1772756305043,1.57476274,2076.1,2075.1,1.52811296]
[1772756306243,1.57476274,2075.9,2075.1,1.52811296]
[1772756308844,1.57476274,2075.7,2074.9,1.52383154]
[1772756309935,1.57476274,2075.7,2074.9,1.53008041]
[1772756310846,1.54048625,2076.0,2074.9,1.53008041]
[1772756315650,1.54048625,2075.8,2074.9,1.53008041]
[1772756321155,3.99728949,2076.3,2074.9,1.53008041]
[1772756321156,1.54048625,2076.2,2075.1,1.62072483]
[1772756326157,1.54048625,2075.8,2074.9,1.6269737]
[1772756329761,1.54048625,2076.1,2074.9,1.6269737]
[1772756329958,1.54048625,2075.9,2074.9,1.6269737]
[1772756331554,1.54048625,2076.1,2075.1,1.62072483]
[1772756331754,5.57487494,2076.0,2075.1,1.62072483]
[1772756331955,1.54048625,2076.1,2075.1,1.62072483]
[1772756333459,4.23808949,2076.3,2075.1,1.62072483]
[1772756333460,1.54048625,2076.2,2075.1,1.62072483]
[1772756333658,1.54048625,2076.2,2075.3,1.62072483]
[1772756334857,1.54048625,2076.2,2075.5,1.62072483]
[1772756335056,1.54048625,2076.4,2075.5,1.62072483]
[1772756335256,5.58174465,2076.3,2075.5,1.62072483]
[1772756335454,1.54048625,2076.4,2075.5,1.62072483]
[1772756335655,5.58096898,2076.3,2075.5,1.62072483]
[1772756335855,1.54048625,2076.4,2075.5,1.62072483]
[1772756336055,5.58086447,2076.3,2075.5,1.62072483]
[1772756336358,1.54048625,2076.4,2075.6,1.62072483]
[1772756336558,5.5795198,2076.3,2075.6,1.62072483]
[1772756336759,1.54048625,2076.4,2075.6,1.62072483]
[1772756336960,5.57962458,2076.3,2075.6,1.62072483]
[1772756337155,1.54048625,2076.4,2075.6,1.62072483]
[1772756338863,1.54048625,2076.2,2075.6,1.62072483]
[1772756343569,1.54048625,2076.2,2075.4,1.61787699]
[1772756343769,1.67333369,2076.0,2075.1,1.61787699]
[1772756344269,5.57972686,2075.9,2075.1,1.61787699]
[1772756344464,1.67333369,2075.7,2075.1,1.61787699]
[1772756345170,1.67333369,2075.9,2075.1,1.61787699]
[1772756346372,1.67333369,2076.2,2075.1,1.61787699]
[1772756346574,1.67333369,2076.2,2075.2,1.61787699]
[1772756346969,1.67333369,2076.5,2075.2,1.85876699]
[1772756347171,1.67333369,2076.3,2075.3,1.61787699]
[1772756358680,1.67333369,2076.2,2075.3,1.61787699]
[1772756359380,1.67333369,2076.0,2075.1,1.61787699]
[1772756363083,1.67333369,2076.0,2075.2,1.61787699]
[1772756368590,6.595,2076.2,2075.4,1.61787699]
[1772756368784,7.27859778,2076.1,2075.4,1.61787699]
[1772756368984,1.67333369,2076.2,2075.4,1.61787699]
[1772756369189,1.67333369,2076.3,2075.4,1.61787699]
[1772756374792,1.53522414,2076.8,2075.8,1.60386859]
[1772756374999,1.53522414,2076.8,2076.0,1.60386859]
[1772756375200,1.53870057,2076.9,2076.1,1.60386859]
[1772756375399,1.53522414,2077.3,2076.3,1.60386859]
[1772756375600,1.53522414,2077.3,2076.4,1.60386859]
[1772756376399,0.00483726,2077.3,2076.4,1.60736815]
[1772756376898,1.5400614,2077.3,2076.4,1.60736815]
[1772756380895,1.5400614,2077.3,2076.4,0.00349956]
[1772756381302,1.5400614,2077.3,2076.1,1.60386859]
[1772756382304,1.5400614,2077.3,2076.1,1.60926944]
[1772756387111,1.5400614,2077.3,2076.3,1.60386859]
[1772756394107,1.53522414,2077.2,2076.3,1.60386859]
[1772756394315,1.77592414,2077.2,2076.1,42.40926944]
[1772756394510,1.77593414,2077.0,2076.1,0.00540085]
[1772756395013,1.53522414,2076.8,2076.1,0.00540085]
[1772756395210,1.53522414,2076.8,2075.8,1.60386859]
[1772756395408,1.53522414,2076.6,2075.6,1.60386859]
[1772756395710,1.53522414,2076.5,2075.2,1.60386859]
[1772756395911,1.53522414,2076.5,2075.4,1.60386859]
[1772756396108,1.53522414,2076.5,2075.4,1.6098397]
[1772756398512,3.85104408,2076.6,2075.5,1.60386859]
[1772756398716,1.68083084,2076.9,2076.3,0.00213015]
[1772756399408,1.68083084,2076.9,2075.8,0.00213015]
[1772756401508,5.55294343,2076.8,2075.4,0.24686111]
[1772756401713,1.77413351,2076.7,2075.4,0.24686111]
[1772756403414,1.78974486,2076.6,2075.4,0.24686111]
[1772756408520,1.78974486,2076.6,2075.4,0.00597111]
[1772756408719,1.74132704,2076.4,2075.4,0.00597111]
[1772756414522,1.74132704,2076.4,2075.5,0.02317262]
[1772756416621,1.74132704,2076.4,2075.7,0.02588241]
[1772756418728,1.74132704,2076.4,2075.8,0.2841028]
[1772756426234,1.74132704,2076.4,2075.8,0.24085]
[1772756426535,1.74132704,2076.4,2075.9,2.04145319]
[1772756426726,4.08290638,2076.0,2074.6,1.53140087]
[1772756427025,1.66602031,2075.1,2074.5,21.948]
[1772756427227,1.66602031,2075.1,2074.3,1.53140087]
[1772756427433,1.66602031,2075.1,2074.4,25.52085406]
[1772756427634,1.66602031,2075.1,2074.4,3.57285406]
[1772756427835,1.67023268,2075.1,2074.4,1.53547568]
[1772756428029,1.66602031,2075.0,2074.5,21.948]
[1772756430036,1.66602031,2075.0,2073.9,2.38304064]
[1772756430435,0.24515237,2075.1,2074.0,19.70227468]
[1772756430436,0.00421237,2075.1,2074.0,19.70227468]
[1772756430635,5.87148795,2075.0,2074.0,2.38304064]
[1772756430831,0.28300173,2074.9,2074.0,2.38863573]
[1772756431135,0.28300173,2074.9,2074.1,17.31923404]
[1772756432436,0.28300173,2074.9,2074.1,17.04443681]
[1772756435737,0.28300173,2074.9,2074.2,2.54641514]
[1772756437242,0.28300173,2074.9,2074.1,17.04443681]
[1772756437940,0.28300173,2074.9,2074.1,19.57769888]
[1772756438438,0.28300173,2074.9,2074.1,2.53326207]
[1772756441846,6.55813547,2074.8,2074.3,2.52402106]
[1772756442346,0.03013547,2074.7,2074.3,2.52402106]
[1772756442543,6.57003865,2074.8,2074.4,19.56250627]
[1772756442746,6.57003865,2074.8,2074.4,2.51806946]
[1772756443046,0.03911599,2074.7,2074.4,2.51806946]
[1772756443248,0.03911599,2074.7,2074.4,1.14142904]
[1772756443549,0.03911599,2074.7,2074.1,2.33888117]
[1772756443743,0.03911599,2074.7,2074.2,2.33888117]
[1772756448643,6.528,2074.8,2074.0,0.00559509]
[1772756448644,1.50847259,2074.9,2074.4,2.33888117]
[1772756448846,0.00421237,2075.1,2074.4,2.33888117]
[1772756449046,1.51268496,2075.1,2074.6,2.33888117]
[1772756449547,1.51268496,2075.1,2074.1,2.57903122]
[1772756449548,1.50847259,2074.9,2074.1,2.57903122]
[1772756449751,1.50847259,2074.9,2074.2,2.57902423]
[1772756450146,1.50847259,2074.9,2074.4,2.57902423]
[1772756450451,6.76395,2075.0,2074.4,2.57902423]
[1772756450647,6.76395,2075.0,2074.6,2.58801304]
[1772756450852,0.16350894,2074.9,2074.6,2.58801304]
[1772756455653,0.00421237,2075.1,2074.6,2.58801304]
[1772756455958,10.46598996,2075.6,2074.8,2.61619527]
[1772756456257,0.46359944,2075.5,2074.8,2.61619527]
[1772756456457,6.62724502,2075.6,2074.8,2.61619527]
[1772756456758,0.54840923,2075.5,2075.0,2.61408908]
[1772756456957,0.09062235,2075.5,2075.0,2.61408908]
[1772756460158,0.00581371,2075.5,2075.0,2.61408908]
[1772756460351,0.00581371,2075.5,2075.2,2.74218214]
[1772756462159,6.527,2075.6,2075.3,2.74218214]
[1772756463359,6.53241329,2075.6,2075.3,2.74218214]
[1772756468756,7.02176763,2075.6,2075.3,2.74218214]
[1772756468961,0.68392201,2075.5,2075.3,13.72064885]
[1772756469561,6.53241329,2075.6,2075.3,13.72064885]
[1772756469861,6.58724544,2075.6,2075.3,13.72064885]
[1772756470461,6.58724544,2075.6,2075.3,16.5578617]
[1772756471958,0.06312942,2075.8,2075.4,2.82622329]
[1772756472162,12.21581164,2075.7,2075.4,2.82622329]
[1772756472456,6.56,2075.7,2075.4,2.82622329]
[1772756472964,6.56363156,2075.7,2075.4,2.82622329]
[1772756473863,6.565,2075.6,2075.4,2.82622329]
[1772756474258,6.565,2075.6,2075.3,16.5458864]
[1772756474663,6.60368186,2075.6,2075.3,16.5458864]
[1772756475765,6.60368186,2075.6,2075.3,13.72064885]
[1772756476366,0.03187632,2075.5,2075.3,13.72064885]
[1772756476865,6.59815786,2075.6,2075.3,13.72064885]
[1772756477867,6.59815786,2075.6,2075.3,16.54486968]
[1772756479269,0.00840114,2075.5,2075.3,13.72064885]
[1772756479569,0.00840114,2075.5,2075.1,2.82971431]
[1772756479769,6.5665466,2075.6,2075.3,2.82968672]
[1772756479970,6.565,2075.6,2075.2,2.82968672]
[1772756480169,6.5665466,2075.6,2075.2,2.82968672]
[1772756481268,6.80588,2075.6,2075.2,2.33300672]
[1772756481464,0.49514528,2075.5,2075.3,12.74350721]
[1772756481665,0.49514528,2075.5,2075.1,2.74218214]
[1772756484074,5.67254439,2075.4,2075.1,2.74218214]
[1772756484278,0.49514528,2075.5,2075.1,2.74218214]
[1772756484466,5.67274357,2075.4,2075.2,12.74350721]
[1772756484671,0.49514528,2075.5,2075.2,12.74350721]
[1772756484876,5.67274359,2075.4,2075.2,12.74350721]
[1772756485069,0.49514528,2075.5,2075.2,15.55286159]
[1772756485272,0.11281635,2075.3,2074.4,2.80935438]
[1772756485476,12.73116219,2075.2,2074.4,2.80935438]
[1772756485772,5.67697073,2075.1,2074.4,2.80935438]
[1772756485968,5.67697073,2075.0,2074.4,2.80935438]
[1772756486168,6.59,2075.2,2074.4,2.80935438]
[1772756486368,5.67349977,2075.1,2074.4,2.80935438]
[1772756486565,6.59,2075.2,2074.4,2.80935438]
[1772756486774,5.67365845,2075.1,2074.4,2.80935438]
[1772756486976,6.59,2075.2,2074.4,2.80935438]
[1772756487175,5.67365209,2075.1,2074.4,2.80935438]
[1772756487473,6.59,2075.2,2074.4,2.80935438]
[1772756487673,5.67241803,2075.1,2074.4,2.80935438]
[1772756487873,6.59,2075.2,2074.4,2.80935438]
[1772756488075,5.67237979,2075.1,2074.4,2.80935438]
[1772756488273,6.59,2075.2,2074.4,2.80935438]
[1772756488573,5.67137549,2075.1,2074.4,2.80935438]
[1772756488773,6.59,2075.2,2074.4,2.80935438]
[1772756488976,5.67136964,2075.1,2074.4,2.80935438]
[1772756489172,6.59,2075.2,2074.4,2.80935438]
[1772756489374,5.66980246,2075.1,2074.4,2.80935438]
[1772756489572,6.59,2075.2,2074.4,2.80935438]
[1772756489773,5.66948595,2075.1,2074.4,2.80935438]
[1772756489970,6.59,2075.2,2074.4,2.80935438]
[1772756490170,5.66867876,2075.1,2074.4,2.80935438]
[1772756490370,6.603,2075.0,2074.5,3.23342594]
[1772756490572,2.37889122,2075.0,2074.5,3.23342594]
[1772756490775,6.604,2075.1,2074.5,3.23342594]
[1772756491775,3.0981713,2075.4,2074.5,3.23342594]
[1772756492080,12.26468468,2075.3,2074.7,3.23342594]
[1772756492280,6.607,2075.3,2074.7,3.23342594]
[1772756495878,3.0981713,2075.4,2074.7,3.23342594]
[1772756496084,6.617,2075.2,2074.7,3.23342594]
[1772756501685,3.0981713,2075.4,2074.7,3.23342594]
[1772756501884,9.7291713,2075.4,2074.7,3.23342594]
[1772756510390,9.7441713,2075.6,2075.0,3.23342594]
[1772756513192,3.0981713,2075.5,2075.0,3.23342594]
[1772756513793,3.0981713,2075.5,2074.4,3.23342594]
[1772756514994,3.0981713,2075.5,2074.5,2.04396278]
[1772756515195,3.0981713,2075.5,2074.6,3.23342594]
[1772756518496,3.0981713,2075.5,2074.9,3.23342594]
[1772756520792,3.22023814,2075.3,2074.9,3.23342594]
[1772756521190,3.22023814,2075.3,2074.6,3.39613321]
[1772756521488,3.22023814,2075.1,2074.4,3.39613321]
[1772756521693,3.22023814,2074.9,2074.4,3.39613321]
[1772756522095,3.22023814,2074.9,2074.3,3.39613321]
[1772756527299,3.22023814,2074.8,2074.2,3.39613321]
[1772756528196,3.22023814,2074.7,2074.1,3.39613321]
[1772756533702,3.22023814,2074.5,2074.0,3.4017283]
[1772756534003,3.22023814,2074.3,2074.0,3.4017283]
[1772756534692,9.92823814,2074.4,2074.0,3.4017283]
[1772756535804,3.22023814,2074.3,2074.0,3.4017283]
[1772756536103,3.22023814,2074.3,2074.0,0.00559509]
[1772756536306,3.22023814,2074.3,2073.9,3.39613321]
[1772756536507,3.22023814,2074.3,2073.6,3.39613321]
[1772756536706,3.22023814,2074.3,2073.8,3.39613321]
[1772756537504,3.22023814,2074.3,2073.8,3.40184096]
[1772756539107,6.708,2074.4,2073.8,3.40184096]